Cogmind - Beta 9.6 @@@ ROGUE MODE // 2020.07.08 @ 04:50:58 Player: Wer1in Result: Destroyed by G-34 Mercenary with Small Laser Performance ------------- Evolutions (1) 500 Regions Visited (2) 400 Robots Destroyed (30) 150 Value Destroyed (590) 590 Prototype IDs (0) 0 Alien Tech Used (0) 0 Bonus (0) 0 TOTAL SCORE: 1640 Bonus ------- None Cogmind --------- Core Integrity 0/400 Matter 300/300 Energy 86/100 System Corruption 0% Temperature Cool (15) Movement Core (150) Ox2 Location -9/Materials Parts ------- > --- POWER (1) -------- (None) > --- PROPULSION (2) --- (None) > --- UTILITY (3) ------ (None) > --- WEAPON (3) ------- Light EM Pulse Cannon Heavy Hammer > --- INVENTORY (4) ---- Signal Interpreter Peak State ------------ > --- POWER ------------ Ion Engine > --- PROPULSION ------- Aluminum Leg Aluminum Leg > --- UTILITY ---------- Small Storage Unit Structural Scanner > --- WEAPON ----------- Spread Laser Spread Laser Heavy Hammer > --- INVENTORY -------- Signal Interpreter Heavy Hammer [Rating: 11] Favorites ----------- Power Light Ion Engine Engine Light Ion Engine Propulsion Aluminum Leg Leg Aluminum Leg Utility Small Storage Unit Device Structural Scanner Storage Small Storage Unit Processor Visual Processing Unit Weapon Small Laser Energy Gun Small Laser Energy Cannon Light EM Pulse Cannon Ballistic Gun Assault Rifle Impact Weapon Heavy Hammer Build | -11 -10 -9 ------- Run | Scr Mat Mat Slots Evolved 2 | . . 2 Power . | . . . Propulsion . | . . . Utility 1 | . . 1 Weapon 1 | . . 1 Parts Attached 33 | 6 17 10 Power 4 | 1 3 . Engine 4 | 1 3 . Core . | . . . Reactor . | . . . Propulsion 7 | 2 3 2 Treads . | . . . Leg 7 | 2 3 2 Wheel . | . . . Hover . | . . . Flight . | . . . Utility 4 | 1 1 2 Device 1 | . . 1 Storage 2 | 1 . 1 Processor 1 | . 1 . Hackware . | . . . Protection . | . . . Artifact . | . . . Weapon 18 | 2 10 6 Energy Gun 10 | 2 6 2 Energy Cannon 2 | . . 2 Ballistic Gun 2 | . 2 . Ballistic Cannon . | . . . Launcher . | . . . Special Weapon . | . . . Impact Weapon 4 | . 2 2 Slashing Weapon . | . . . Piercing Weapon . | . . . Special Melee Weapon . | . . . Unidentified Prototypes . | . . . Parts Lost 16 | . 6 10 Power 2 | . 1 1 Propulsion 5 | . 2 3 Utility 3 | . 1 2 Weapon 6 | . 2 4 Highest Loss Streak 6 | . 2 6 Average Slot Usage (%) 80 | . 89 68 Engine 11 | . 13 9 Leg 21 | . 27 14 Device 4 | . . 9 Storage 10 | . 14 6 Processor 5 | . 9 . Energy Gun 12 | . 12 11 Ballistic Gun 5 | . 9 . Impact Weapon 7 | . 2 15 Naked Turns . | . . . Heaviest Build 19 | 10 15 19 Greatest Support 20 | 20 20 20 Greatest Overweight (x) 3 | 2 1 3 Average Overweight (x) . | . . . Largest Inventory Capacity 6 | 6 6 6 Average Capacity 5 | 5 6 5 Most Carried 5 | 2 4 5 Average Carried 1 | . 1 4 Final Capacity 6 | 6 6 4 Final Carried 3 | 1 3 1 Class Distribution -------------------- 100% | Mutant Dominant Class ---------------- Mutant | -10/Materials Mutant | -9/Materials Resources | -11 -10 -9 ----------- Run | Scr Mat Mat Matter Collected 565 | 260 190 115 Remotely . | . . . Salvage Created 916 | 146 412 358 Parts 55 | 7 32 16 Haulers Intercepted . | . . . Recyclers Shooed 4 | 1 2 1 Parts Field Recycled . | . . . Retrieved Matter . | . . . Parts Self-Destructed . | . . . Prevented . | . . . Kills | -11 -10 -9 ------- Run | Scr Mat Mat Combat Hostiles Destroyed 19 | . 10 9 Melee 3 | . 2 1 Guns 9 | . 7 2 Cannons 2 | . . 2 Classes Destroyed 9 | 3 3 3 Worker 4 | 1 2 1 Tunneler 2 | 2 . . Recycler 3 | 1 1 1 Mechanic 1 | . . 1 Watcher 1 | . 1 . Swarmer 7 | . 3 4 Grunt 10 | . 7 3 Duelist 1 | . . 1 Sentry 1 | . . 1 Best Kill Streak 6 | 2 3 6 Combat Bots Only 6 | . 3 6 Max Kills in Single Turn 1 | 1 1 1 Gunslinging . | . . . Exploded . | . . . Melee 1 | . 1 1 Uniques/NPCs Destroyed . | . . . Combat | -11 -10 -9 -------- Run | Scr Mat Mat Damage Taken 1935 | . 768 1167 Core 589 | . 188 401 Absorbed by Shields . | . . . Core Remaining (%) 62 | 100 24 . Volleys Fired 81 | 14 47 20 Largest 2 | 2 2 2 Hottest 130 | 90 130 130 Shots Fired 122 | 28 64 30 Gun 115 | 28 64 23 Cannon 7 | . . 7 Launcher . | . . . Special . | . . . Kinetic 29 | . 29 . Thermal 86 | 28 35 23 Explosive . | . . . Electromagnetic 7 | . . 7 Robot Hit Streak 15 | 11 10 15 Robot Miss Streak 8 | 3 8 6 Penetration Max . | . . . Secondary Targets . | . . . Shots Hit Robots 125 | 16 57 52 Core Hits 59 | 5 31 23 Critical Hits . | . . . Critical Kills . | . . . Critical Parts Destroyed . | . . . Melee Attacks 48 | . 10 38 Impact 48 | . 10 38 Slashing . | . . . Piercing . | . . . Sneak Attacks 3 | . . 3 Combat Hostiles . | . . . Follow-up Attacks 4 | . 2 2 Damage Inflicted 2099 | 188 810 1101 Guns 986 | 188 591 207 Cannons 100 | . . 100 Explosions . | . . . Melee 1013 | . 219 794 Ramming . | . . . Kinetic 273 | . 273 . Thermal 713 | 188 318 207 Explosive . | . . . Electromagnetic 100 | . . 100 Impact 1013 | . 219 794 Slashing . | . . . Piercing . | . . . Highest Corruption . | . . . Average Corruption . | . . . Corruption Purged . | . . . Overload Shots . | . . . Overflow Damage 154 | . 12 142 Projectiles . | . . . Explosions . | . . . Melee 154 | . 12 142 Knockbacks 3 | . . 3 Impact 3 | . . 3 Kinetic . | . . . Secondary . | . . . Self-Inflicted Damage . | . . . Shots . | . . . Rammed . | . . . Targets Rammed . | . . . Kicked . | . . . Crushed . | . . . Highest Temperature 542 | 180 542 340 Average Temperature 143 | 73 198 122 Received Heat Transfer 660 | . 351 309 Effects 12 | . 12 . Shutdowns 2 | . 2 . Energy Bleed 1 | . 1 . Interference 2 | . 2 . Matter Decay 2 | . 2 . Short Circuit 1 | . 1 . Damage (minor) 2 | . 2 . Damage (major) 2 | . 2 . Siege Activations . | . . . Robots Corrupted . | . . . Combat Hostiles . | . . . Parts Fried 4 | . 1 3 Impact Corruptions 12 | . 1 11 Robots Melted . | . . . Combat Hostiles . | . . . Parts Melted 2 | 2 . . Heat Transferred 1301 | 496 550 255 Parts Sabotaged . | . . . Parts Stolen . | . . . Parts Stripped . | . . . Power Chain Reactions . | . . . Missiles Intercepted . | . . . Alert | -11 -10 -9 ------- Run | Scr Mat Mat Peak Influence 215 | 10 196 215 Average Influence 47 | 3 82 102 Maximum Alert Level 1 | . . 1 Low Security (%) 97 | 100 100 87 Level 1 2 | . . 12 Level 2 . | . . . Level 3 . | . . . Level 4 . | . . . Level 5 . | . . . High Security . | . . . Max Security . | . . . Squads Dispatched 1 | . 1 . Investigation 1 | . 1 . Extermination . | . . . Reinforcement . | . . . Assault . | . . . Garrison . | . . . Intercept . | . . . Construction Impeded . | . . . Haulers Reinforced . | . . . Stealth | -11 -10 -9 --------- Run | Scr Mat Mat Distress Signals 1 | . . 1 Communications Jammed . | . . . Distress Signals . | . . . Times Spotted 31 | . 14 17 Peak Tracking Total 6 | . 4 6 Tactical Retreats . | . . . Traps | -11 -10 -9 ------- Run | Scr Mat Mat Traps Triggered . | . . . Indirectly . | . . . Trap Hack Attempts . | . . . Triggered . | . . . Disarmed . | . . . Reprogrammed . | . . . Reused . | . . . Traps Extracted . | . . . Installed . | . . . Triggered . | . . . Machines | -11 -10 -9 ---------- Run | Scr Mat Mat Machines Disabled 1 | . . 1 Max in Single Turn 1 | . . 1 Machines Sabotaged . | . . . Garrisons Compromised . | . . . Overloaded Fab Kills . | . . . Fab Network Shutdowns . | . . . Hacking | -11 -10 -9 --------- Run | Scr Mat Mat Machines Accessed 5 | . 4 1 Terminals 4 | . 4 . Fabricators . | . . . Repair Stations 1 | . . 1 Recycling Units . | . . . Scanalyzers . | . . . Garrison Access . | . . . Total Hacks 21 | . 16 5 Successful 14 | . 10 4 Failed 7 | . 6 1 Catastrophic 1 | . 1 . Database Lockouts . | . . . Manual . | . . . Terminals 16 | . 16 . Fabricators . | . . . Repair Stations 5 | . . 5 Recycling Units . | . . . Scanalyzers . | . . . Garrison Access . | . . . Terminal Hacks 10 | . 10 . Record 5 | . 5 . Robot Analysis 2 | . 2 . Locate Traps 1 | . 1 . Hauler Manifests 1 | . 1 . Zone Layout 1 | . 1 . Fabricator Hacks . | . . . Repair Station Hacks 4 | . . 4 Scan Component 2 | . . 2 Repair 2 | . . 2 Recycling Unit Hacks . | . . . Scanalyzer . | . . . Garrison Access Hacks . | . . . Unauthorized Hacks . | . . . Terminals . | . . . Fabricators . | . . . Repair Stations . | . . . Recycling Units . | . . . Scanalyzers . | . . . Garrison Access . | . . . Data Cores Recovered . | . . . Used . | . . . Hacking Detections 4 | . 4 . Full Trace Events 2 | . 2 . Feedback Events . | . . . Feedback Blocked . | . . . Robot Schematics Acquired . | . . . Robots Built . | . . . Matter . | . . . Time . | . . . Total Robot Build Rating . | . . . Part Schematics Acquired . | . . . Parts Built . | . . . Matter . | . . . Time . | . . . Total Part Build Rating . | . . . Parts Repaired 2 | . . 2 Time 52 | . . 52 Parts Recycled . | . . . Recycled Matter . | . . . Retrieved Matter . | . . . Retrieved Components . | . . . Parts Scanalyzed . | . . . Part Schematics Acquired . | . . . Parts Damaged . | . . . Bothacking | -11 -10 -9 ------------ Run | Scr Mat Mat Used RIF Installer . | . . . Robots Hacked . | . . . Non-combat . | . . . Combat . | . . . Robot Hacks Applied . | . . . Relay Couplers Released . | . . . Robots Rewired . | . . . Allies Hacked . | . . . Hacks Repelled . | . . . Allies | -11 -10 -9 -------- Run | Scr Mat Mat Total Allies . | . . . Largest Group . | . . . Highest-Rated Group . | . . . Highest-Rated Ally . | . . . Total Orders . | . . . Ally Attacks . | . . . Total Damage . | . . . Kills . | . . . Allies Corrupted . | . . . Allies Melted . | . . . Intel | -11 -10 -9 ------- Run | Scr Mat Mat Robot Analysis Total 2 | . 2 . Derelict Logs Recovered . | . . . Drone Launches . | . . . Drone Recoveries . | . . . Exploration | -11 -10 -9 ------------- Run | Scr Mat Mat Turns Passed 1752 | 872 502 378 Spaces Moved 554 | 171 255 128 Core 23 | 11 . 12 Treads . | . . . Legs 531 | 160 255 116 Wheels . | . . . Hover . | . . . Flight . | . . . Fastest Speed 50 | 50 120 50 Average Speed 121 | 119 120 125 Slowest Speed 200 | 150 150 200 Overloaded Moves . | . . . Propulsion Burnouts . | . . . Robots Hopped . | . . . Cave-ins Triggered . | . . . Exploration Rate (%) 27 | 14 54 14 Regions Visited 2 Branch Regions . Pre-discovered Areas . | . . . Known Exits Taken . | . . . Unknown Exits Taken 2 | 1 1 . Scrap Searched . | . . . Spaces Dug . | . . . Terrain Destroyed . | . . . Melee . | . . . Projectile . | . . . AOE . | . . . Actions | -11 -10 -9 --------- Run | Scr Mat Mat Total 1422 | 811 369 242 Wait 678 | 614 21 43 Move 552 | 170 254 128 Hop . | . . . Pick Up 27 | 7 15 5 Fast Attach 2 | . . 2 Attach 22 | 6 10 6 Detach . | . . . Swap 9 | . 7 2 Drop 7 | . 7 . Fire 81 | 14 47 20 Melee 44 | . 8 36 Ram . | . . . Kick . | . . . Crush . | . . . Escape Stasis . | . . . Rewire . | . . . Trap . | . . . Miscellaneous . | . . . Route ------- -11/Scrapyard -10/Materials -9/Materials History --------- Turn | Location | Event 33 | -11/Scrapyard | Discovered new exit (range 16) 873 | -11/Scrapyard | Entered Materials 874 | -10/Materials | Build established: Mutant 1195 | -10/Materials | Core integrity fell below 50% 1283 | -10/Materials | Discovered new exit (range 11) 1375 | -10/Materials | Entered another Materials area 1375 | -9/Materials | Evolved 2 slots: Utility x1, Weapon x1 1418 | -9/Materials | Repaired Sml. Storage Unit 1444 | -9/Materials | Repaired Aluminum Leg 1666 | -9/Materials | Core integrity fell below 50% 1723 | -9/Materials | Core integrity fell below 20% 1753 | -9/Materials | Destroyed by G-34 Mercenary with Small Laser Last Messages --------------- 01693_ Acquired 10 matter. 01700_ Ion Engine destroyed. 01701_ K-01 Serf collects debris. 01703_ Structural Scanner destroyed. 01710_ Hvy. Hammer destroyed. 01713_ L-31 Rogue destroyed. 01714_ Aluminum Leg destroyed. 01717_ G-34 Mercenary destroyed. 01726_ Spread Laser destroyed. 01731_ K-01 Serf collects debris. 01733_ Spread Laser destroyed. 01734_ K-01 Serf collects debris. 01739_ Acquired 15 matter. 01742_ G-34 Mercenary knocked back. 01742_ K-01 Serf collects debris. 01745_ R-06 Scavenger collects Ion Engine. 01745_ K-01 Serf collects debris. 01749_ R-06 Scavenger collects Aluminum Leg. 01751_ K-01 Serf collects debris. 01752_ R-06 Scavenger collects Katana. Map ----- +----------------------------------------------------+ | ????????????????????????????????????????????????? | | ????????????????????????????????????????????????? | | ????????????????????????????????????????????????? | | ???????????????????????+##??????????????????????? | | ?????????????????????? ??????????????????????? | | ?????????????????????? ??????????????????????? | | ?????????????????????? ??????????????????????? | | ??????????????????????# ??????????????????????? | | ??????????????????????# ??????????????????????? | | ??????????????????????/ ??????????????????????? | | ??????????????????????# #?????????????????????? | | ??????????????????????# #?????????????????????? | | ??????????????????????# #?????????????????????? | | ??????????????????????# #?????????????????????? | | ??????????????????????# #?????????????????????? | | ??????????????????????# +?????????????????????? | | ??????????????????????#r #?????????????????????? | | ??????????????????????# #?????????????????????? | | ??????????????????????# a #?????????????????????? | | ??????????????????????# #?????????????????????? | | ??????????????????????#=[k#?????????????????????? | | ?????????????????????##% %##???????#????????????? | | ?????????????????????# r #???? #????????????? | | ?????????????????????# ### #????????????? | | ?????????????????????# % gg #????????????? | | ?????????????????????# k@ ### #????????????? | | ?????????????????????# g%% #?????? #????????????? | | ????????????????????####+#####??????????????????? | | ????????????????????# %% #??????????????????? | | ????????????????????# "% #??????????????????? | | ????????????????????#""""" #??????????????????? | | ????????????????????#""""" #??????????????????? | | ????????????????????#""""" #??????????????????? | | ????????????????????# """ #??????????????????? | | ????????????????????# #??????????????????? | | ????????????????????# #??????????????????? | | ????????????????????# [ #??????????????????? | | ????????????????????###/######??????????????????? | | ??????????????????????# #???????????????????????? | | ??????????????????????# #???????????????????????? | | ??????????????????????# #???????????????????????? | | ??????????????????????# #???????????????????????? | | ??????????????????????# #???????????????????????? | | ??????????????????????# #???????????????????????? | | ??????????????????????# #???????????????????????? | | ??????????????????????# #???????????????????????? | | ??????????????????????# #???????????????????????? | | ??????????###########?# #???????????????????????? | | ??????????# #?# #???????????????????????? | | ??????????# #?# ##########??????????????? | +----------------------------------------------------+ Best States ------------- Heat Dissipation 28 Energy Generation 10 Energy Capacity 250 Matter Stores 300 Matter Capacity 300 Sight Range 18 Terrain Scan Density 10 Evasion (%) 40 Item Schematics ----------------- None Robot Schematics ------------------ None Fabricated ------------ Nothing Alien Tech Used ----------------- None Achievements -------------- Shopping List Challenges ------------ None Game ------ Seed BiometalArmoredAmplifier Manual? 0 Play Time 00:26:09 Cumulative 3.2 hours Start 2020.07.08 @ 04:25:41 End 2020.07.08 @ 04:50:58 Sessions 1 Manual Loads 0 Difficulty Rogue Special Mode None Game No. 2 Rogue 2 Adventurer 0 Explorer 0 Win Type - Total 0 Types 0/0/0/0/0/0/0 Lore% 2 Gallery% 6 Achievement% 8 Wizard Run 0 Options --------- ASCII 0 Keyboard 0 Movement Mouse Keybinds 0 Fullscreen 1 Font 24/Terminus Map View 76x50 Tactical HUD 1 Map Filters NONE Filters NONE Steam 1 RUN: e047037f-80b0-49d5-992f-d3c1d0fed885